Cogmind - Beta 17 @@@ ROGUE MODE // 2026.07.05 @ 20:27:32 Player: KURIIRI Result: Self-destructed Performance ------------- Evolutions (1) 500 Regions Visited (2) 400 Robots Destroyed (94) 470 Value Destroyed (1846) 1846 Prototype IDs (4) 80 Alien Tech Used (0) 0 Bonus (6024) 6024 TOTAL SCORE: 9320 Bonus ------- High Alert Combat Kills 274 Prayed to X0-1V1 5000 Major X0-1V1 Interference 750 Cogmind --------- Core Integrity 312/465 Matter 109/300 Energy 1380/1380 System Corruption 0% Temperature Cool (3) Movement Treading (320) Ox2 Location -9/Materials Parts ------- > --- POWER (1) -------- Cooled Ion Engine > --- PROPULSION (2) --- Light Treads Light Treads > --- UTILITY (3) ------ Huge Storage Unit Hardened Medium Armor Plating X0-1V1's Piety Tracker > --- WEAPON (3) ------- Advanced Beam Cannon Gauss Rifle > --- INVENTORY (25) --- Light Ion Engine Improved Ion Engine Heavy Ion Engine Light Treads Wheel Armored Wheel Cooling System Small Storage Unit Hardened Light Armor Plating Hardened Light Armor Plating Hardened Light Armor Plating Hardened Light Armor Plating Hardened Light Armor Plating Hardened Medium Armor Plating Hardened Medium Armor Plating EM Pulse Gun Mini Grenade Launcher Mini Grenade Launcher Mini Grenade Launcher Maul Peak State ------------ > --- POWER ------------ Cooled Ion Engine > --- PROPULSION ------- Light Treads Compact Wheel > --- UTILITY ---------- Huge Storage Unit Hardened Medium Armor Plating X0-1V1's Piety Tracker > --- WEAPON ----------- Shotgun Shotgun Shotgun > --- INVENTORY -------- Light Ion Engine Improved Ion Engine Heavy Ion Engine Light Treads Light Treads Light Treads Wheel Armored Wheel Cooling System Small Storage Unit Hardened Light Armor Plating Hardened Light Armor Plating Hardened Light Armor Plating Hardened Light Armor Plating Hardened Light Armor Plating Hardened Medium Armor Plating Hardened Medium Armor Plating Hardened Medium Armor Plating EM Pulse Gun Advanced Beam Cannon Gauss Rifle Mini Grenade Launcher Mini Grenade Launcher Mini Grenade Launcher Maul [Rating: 33] Favorites ----------- Power Light Ion Engine Engine Light Ion Engine Propulsion Light Treads Treads Light Treads Leg Aluminum Leg Wheel Compact Wheel Utility Huge Storage Unit Device Seismic Detector Storage Huge Storage Unit Protection Hardened Light Armor Plating Weapon Shotgun Energy Gun Small Laser Energy Cannon Advanced Beam Cannon Ballistic Gun Shotgun Launcher Mini Grenade Launcher Build | -11 -10 -9 ------- Run | Yrd Mat Mat Slots Evolved 2 | . . 2 Power . | . . . Propulsion . | . . . Utility 1 | . . 1 Weapon 1 | . . 1 Parts Attached 29 | 4 6 19 Power 3 | . . 3 Engine 3 | . . 3 Core . | . . . Reactor . | . . . Propulsion 7 | 2 1 4 Treads 5 | 2 . 3 Leg . | . . . Wheel 2 | . 1 1 Hover . | . . . Flight . | . . . Utility 7 | 1 2 4 Device 3 | 1 1 1 Storage 1 | . 1 . Processor . | . . . Hackware . | . . . Protection 3 | . . 3 Artifact . | . . . Weapon 12 | 1 3 8 Energy Gun 2 | . 2 . Energy Cannon 1 | . . 1 Ballistic Gun 6 | 1 . 5 Ballistic Cannon . | . . . Launcher 3 | . 1 2 Special Weapon . | . . . Impact Weapon . | . . . Slashing Weapon . | . . . Piercing Weapon . | . . . Special Melee Weapon . | . . . Unidentified Prototypes 3 | . 1 2 Parts Lost 10 | . 1 9 Power 1 | . 1 . Propulsion 3 | . . 3 Utility 2 | . . 2 Weapon 4 | . . 4 Highest Loss Streak 6 | . 1 6 To Critical Strikes . | . . . Average Backups 13 | 6 7 21 Power 1 | 1 1 2 Propulsion 4 | 4 3 4 Utility 3 | . . 7 Weapon 4 | 1 2 7 Tool/Special . | . . . Unused Backups 19 | 5 1 13 Power 3 | 1 1 1 Propulsion 3 | 2 . 1 Utility 9 | 1 . 8 Weapon 4 | 1 . 3 Tool/Special . | . . . Average Slot Usage (%) 97 | . 99 96 Engine 11 | . 13 9 Treads 16 | . 22 11 Wheel 8 | . 6 10 Device 12 | . 14 10 Storage 12 | . 14 11 Protection 5 | . . 10 Energy Gun 6 | . 11 . Ballistic Gun 22 | . 14 31 Launcher 1 | . 2 . Peak Build Rating 33 | 7 21 33 Average Rating 16 | 6 7 29 On Entrance 11 | 6 7 21 Avg Prop Armor Cover (%) 10 | . 13 7 Naked Turns . | . . . Heaviest Build 106 | 12 87 106 Greatest Support 40 | 40 40 16 Greatest Overweight (x) 6 | . 5 6 Average Overweight (x) 3 | . 2 5 Largest Inventory Capacity 25 | 8 25 25 Average Capacity 18 | 8 15 25 Most Carried 25 | 6 16 25 Average Carried 13 | 5 7 21 Final Capacity 25 | 8 25 25 Final Carried 20 | 4 16 20 Class Distribution -------------------- 59% | Mutant 37% | Tank Dominant Class ---------------- Mutant | -10/Materials Tank | -9/Materials Resources | -11 -10 -9 ----------- Run | Yrd Mat Mat Matter Collected 1539 | 326 166 1047 Remotely . | . . . Salvage Created 2403 | 330 496 1577 Parts 179 | 30 35 114 Haulers Intercepted 4 | . 2 2 Recyclers Shooed 5 | . 2 3 Parts Field Recycled . | . . . Retrieved Matter . | . . . Parts Self-Destructed . | . . . Prevented . | . . . Parts Restored . | . . . Kills | -11 -10 -9 ------- Run | Yrd Mat Mat Combat Hostiles Destroyed 55 | . 15 40 Guns 34 | . 11 23 AOE 21 | . 4 17 Classes Destroyed 14 | 3 6 5 Worker 9 | 2 1 6 Builder 1 | . . 1 Tunneler 10 | 9 . 1 Hauler 4 | . 2 2 Recycler 4 | 1 . 3 Mechanic 1 | . 1 . Operator 1 | . 1 . Watcher 9 | . 2 7 Swarmer 20 | . 9 11 Grunt 26 | . 6 20 Brawler 2 | . . 2 Protector 1 | . . 1 Sentry 4 | . . 4 Hunter 2 | . . 2 Best Kill Streak 13 | 4 6 13 Combat Bots Only 9 | . 5 9 Max Kills in Single Turn 4 | 1 2 4 Gunslinging . | . . . Exploded 4 | . 2 4 Melee . | . . . Uniques/NPCs Destroyed . | . . . Combat | -11 -10 -9 -------- Run | Yrd Mat Mat Hostile Shots Fired 220 | . 57 163 Missed 52 | . 11 41 Hits 168 | . 46 122 Melee 1 | . . 1 Projectile 167 | . 46 121 Critical Strikes 1 | . . 1 Damage Taken 2157 | . 500 1657 Core 293 | . 140 153 Absorbed by Shields . | . . . Core Remaining (%) 91 | 100 82 . Volleys Fired 173 | 33 57 83 Largest 3 | 2 2 3 Hottest 96 | 80 60 96 Shots Fired 377 | 64 100 213 Gun 348 | 64 90 194 Cannon 7 | . . 7 Launcher 22 | . 10 12 Special . | . . . Kinetic 271 | 30 47 194 Thermal 80 | 31 42 7 Explosive 22 | . 10 12 Electromagnetic 4 | 3 1 . Robot Hit Streak 15 | 8 14 15 Robot Miss Streak 6 | 3 2 6 Penetration Max . | . . . Secondary Targets 3 | . . 3 Max Gunslinging Chain 1 | . . 1 Shots Hit Robots 248 | 28 69 151 Core Hits 148 | 13 31 104 Critical Kills 2 | . 1 1 Critical Parts Destroyed . | . . . Critical Strikes 2 | . 1 1 Destroy 2 | . 1 1 Melee Attacks . | . . . Impact . | . . . Slashing . | . . . Piercing . | . . . Sneak Attacks . | . . . Combat Hostiles . | . . . Follow-up Attacks . | . . . Damage Inflicted 5150 | 323 1288 3539 Guns 3288 | 323 851 2114 Cannons 123 | . . 123 Explosions 1734 | . 432 1302 Melee . | . . . Ramming 5 | . 5 . Kinetic 2680 | 115 451 2114 Thermal 811 | 184 400 227 Explosive 1630 | . 432 1198 Electromagnetic 24 | 24 . . Impact . | . . . Slashing . | . . . Piercing . | . . . Highest Corruption . | . . . Average Corruption . | . . . Corruption Purged . | . . . Corruption Blocked . | . . . Overload Shots . | . . . Overflow Damage 141 | . 77 64 Projectiles . | . . . Explosions 141 | . 77 64 Melee . | . . . Knockbacks . | . . . Impact . | . . . Kinetic . | . . . Secondary . | . . . Self-Inflicted Damage 214 | . 77 137 Shots 5 | . 2 3 Rammed 3 | . 3 . Targets Rammed 3 | . 3 . Kicked . | . . . Crushed . | . . . Highest Temperature 42 | 36 42 6 Average Temperature 18 | 23 20 4 Received Heat Transfer 432 | . 120 312 Siege Activations . | . . . Martial Activations . | . . . Shielding Activations . | . . . Robots Disrupted . | . . . Combat Hostiles . | . . . Robots Corrupted . | . . . Combat Hostiles . | . . . Parts Fried . | . . . Impact Corruptions . | . . . Robots Melted . | . . . Combat Hostiles . | . . . Parts Melted 1 | . 1 . Heat Transferred 1622 | 425 875 322 Parts Sabotaged . | . . . Parts Stolen . | . . . Parts Stripped . | . . . Power Chain Reactions . | . . . Alert | -11 -10 -9 ------- Run | Yrd Mat Mat Maximum Alert Level 3 | . 1 3 Low Security (%) 71 | 100 85 48 Level 1 13 | . 14 15 Level 2 12 | . . 28 Level 3 3 | . . 8 Level 4 . | . . . Level 5 . | . . . High Security . | . . . Max Security . | . . . Peak Influence 975 | 20 255 975 Initial 80 | . . 80 Average 194 | 2 118 331 Influence Increases 1943 | 60 562 1321 Destroy 0b10 Robot/C 1080 | . 300 780 Destroy 0b10 Robot/NC 200 | 60 35 105 Destroy Leader 198 | . 68 130 Successful Hack 5 | . 5 . Select Force Hacks 90 | . 30 60 Disable Machine 90 | . 15 75 Destroy Structure 175 | . 64 111 Lose Combat Pursuer 105 | . 45 60 Influence Decreases 1030 | 60 371 599 Entered New Map 111 | . . 111 Time Decay 819 | 60 361 398 Lost Part 100 | . 10 90 Squads Dispatched 7 | . 3 4 Investigation 3 | . 1 2 Extermination . | . . . Reinforcement 3 | . 2 1 Assault 1 | . . 1 Garrison . | . . . Intercept . | . . . Searches Triggered . | . . . Construction Impeded . | . . . Haulers Reinforced . | . . . Active Scanning Responses . | . . . Cargo Convoy Interrupts . | . . . Stealth | -11 -10 -9 --------- Run | Yrd Mat Mat Distress Signals 11 | . 4 7 Communications Jammed . | . . . Distress Signals . | . . . Times Spotted 80 | . 26 54 Peak Tracking Total 8 | . 4 8 Tactical Retreats 5 | . 2 3 Traps | -11 -10 -9 ------- Run | Yrd Mat Mat Traps Triggered . | . . . Indirectly . | . . . Trap Hack Attempts . | . . . Triggered . | . . . Disarmed . | . . . Reprogrammed . | . . . Reused . | . . . Traps Extracted . | . . . Installed . | . . . Triggered . | . . . Machines | -11 -10 -9 ---------- Run | Yrd Mat Mat Machines Disabled 7 | . 1 6 Max in Single Turn 2 | . 1 2 Machines Repaired . | . . . Machines Dismantled . | . . . Machines Sabotaged . | . . . Overloaded Fab Kills . | . . . Hacking | -11 -10 -9 --------- Run | Yrd Mat Mat Machines Accessed 7 | . 4 3 Terminals 4 | . 3 1 Fabricators . | . . . Repair Stations . | . . . Recycling Units 3 | . 1 2 Scanalyzers . | . . . Garrison Access . | . . . Total Hacks 11 | . 8 3 Successful 5 | . 3 2 Failed 5 | . 4 1 Catastrophic . | . . . Database Lockouts 1 | . 1 . Manual 13 | . 9 4 Terminals 7 | . 6 1 Fabricators . | . . . Repair Stations . | . . . Recycling Units 4 | . 2 2 Scanalyzers . | . . . Garrison Access . | . . . Terminal Hacks 1 | . 1 . Robot Analysis 1 | . 1 . Fabricator Hacks . | . . . Repair Station Hacks . | . . . Recycling Unit Hacks . | . . . Scanalyzer . | . . . Garrison Access Hacks . | . . . Unauthorized Hacks 4 | . 2 2 Terminals 1 | . 1 . Botnet 1 | . 1 . Fabricators . | . . . Repair Stations . | . . . Recycling Units 3 | . 1 2 Tunnel 3 | . 1 2 Scanalyzers . | . . . Garrison Access . | . . . Data Cores Recovered . | . . . Used . | . . . Hacking Detections 3 | . 2 1 Full Trace Events . | . . . Feedback Events . | . . . Feedback Blocked . | . . . Robot Schematics Acquired . | . . . Robots Built . | . . . Authchips . | . . . Time . | . . . Total Robot Build Rating . | . . . Part Schematics Acquired . | . . . Parts Built . | . . . Authchips . | . . . Time . | . . . Total Part Build Rating . | . . . Part Studies Acquired . | . . . Parts Repaired . | . . . Time . | . . . Parts Recycled . | . . . Recycled Matter . | . . . Retrieved Matter . | . . . Retrieved Components . | . . . Parts Scanalyzed . | . . . Part Schematics Acquired . | . . . Parts Damaged . | . . . Bothacking | -11 -10 -9 ------------ Run | Yrd Mat Mat Used RIF Installer . | . . . Robots Hacked . | . . . Non-combat . | . . . Combat . | . . . Robot Hacks Applied . | . . . Relay Couplers Released . | . . . Fabnet Peak Effective % . | . . . Robots Rewired . | . . . Allies Hacked . | . . . Hacks Repelled . | . . . Allies | -11 -10 -9 -------- Run | Yrd Mat Mat Total Allies . | . . . Largest Group . | . . . Highest-Rated Group . | . . . Highest-Rated Ally . | . . . Total Orders . | . . . Ally Attacks . | . . . Total Damage . | . . . Kills . | . . . Allies Corrupted . | . . . Allies Melted . | . . . X0-1V1 Amusement Gains 21 | . 6 15 Good Acts 7 | . 2 5 Bad Acts 3 | . . 3 Intel | -11 -10 -9 ------- Run | Yrd Mat Mat Active Infowar (turns) 965 | 22 943 . Seismic 965 | 22 943 . Robot Analysis Total 1 | . 1 . Derelict Logs Recovered . | . . . Drone Launches . | . . . Drone Recoveries . | . . . Exploration | -11 -10 -9 ------------- Run | Yrd Mat Mat Turns Passed 2215 | 292 976 947 Spaces Moved 773 | 30 435 308 Core . | . . . Treads 250 | 2 248 . Legs 28 | 28 . . Wheels 495 | . 187 308 Hover . | . . . Flight . | . . . Fastest Speed 120 | 120 160 175 Average Speed 172 | 122 166 186 Slowest Speed 190 | 160 175 190 Overloaded Moves . | . . . Propulsion Burnouts . | . . . Robots Hopped . | . . . Potential Cave-ins . | . . . Cave-ins Triggered . | . . . Exploration Rate (%) 39 | 4 79 35 Regions Visited 2 Branch Regions . Pre-discovered Areas 3 | . 1 2 Known Exits Taken . | . . . Unknown Exits Taken 2 | 1 1 . Scrap Searched . | . . . Spaces Dug 18 | . 18 . Terrain Destroyed 193 | . 75 118 Melee . | . . . Projectile . | . . . AOE 193 | . 75 118 Terrain Rammed . | . . . Walls Destroyed . | . . . Machines Disabled . | . . . Actions | -11 -10 -9 --------- Run | Yrd Mat Mat Total 1310 | 221 582 507 Wait 293 | 153 71 69 Move 771 | 29 434 308 Hop . | . . . Pick Up 25 | . 11 14 Fast Attach 4 | 1 . 3 Attach 11 | 2 . 9 Detach 1 | . . 1 Swap 22 | 1 6 15 Drop 7 | 2 . 5 Fire 173 | 33 57 83 Melee . | . . . Ram . | . . . Kick . | . . . Crush 3 | . 3 . Escape Stasis . | . . . Rewire . | . . . Trap . | . . . Miscellaneous . | . . . Route ------- -11/Scrapyard -10/Materials (discovered 3 exits: *Mat x2 / [*Sub]) -9/Materials (discovered 2 exits: [*Mat] / [*Min]) History --------- Turn | Location | Event 52 | -11/Scrapyard | Discovered new exit (range 2) 293 | -11/Scrapyard | Entered Materials 311 | -10/Materials | Build established: Mutant 618 | -10/Materials | Central database locked down 716 | -10/Materials | Discovered new exit (range 16) 986 | -10/Materials | Discovered new exit (range 13) 1204 | -10/Materials | Discovered new exit (range 12) 1211 | -10/Materials | Core integrity fell below 50% 1234 | -10/Materials | Prayed at D.C.S.S. Altar Unit 1242 | -10/Materials | Heat dissipation permanently improved by X0-1V1 (+15; -75 max core) 1262 | -10/Materials | Core integrity permanently improved by X0-1V1 (+200) 1269 | -10/Materials | Entered another Materials area 1269 | -9/Materials | Evolved 2 slots: Utility x1, Weapon x1 1618 | -9/Materials | Ranged accuracy permanently improved by X0-1V1 (+6%; -60 max core) 1630 | -9/Materials | Build established: Tank 1758 | -9/Materials | X0-1V1 sent someone to keep an eye on you 1773 | -9/Materials | Destroyed 8 combat bots 1779 | -9/Materials | Discovered new exit (range 14) 1961 | -9/Materials | Discovered new exit (range 14) 2048 | -9/Materials | X0-1V1 enhanced Transport squad support 2069 | -9/Materials | First assault squad dispatched 2171 | -9/Materials | X0-1V1 sent hostile G-34 Mercenary (x4) 2208 | -9/Materials | Destroyed 9 combat bots 2216 | -9/Materials | Self-destructed Last Messages --------------- 02202_ The unstable cave ceiling collapses. 02202_ Destroyed Lgt. Armor Plating. 02203_ K-01 Serf collects debris. 02203_ Penetrated by Slug. 02203_ Lgt. Treads destroyed. 02206_ Slug penetrates Earth. 02206_ K-01 Serf collects debris. 02207_ Slug penetrates Y-45 Defender. 02208_ U-05 Engineer lays Concrete. 02209_ Penetrated by Slug. 02210_ U-05 Engineer lays Concrete. 02210_ K-01 Serf collects debris. 02210_ Slug penetrates Y-45 Defender. 02211_ U-05 Engineer lays Concrete. 02212_ The unstable cave ceiling collapses. 02212_ U-05 Engineer builds a Wall. 02212_ Penetrated by Slug. 02214_ The unstable cave ceiling collapses. 02214_ K-01 Serf collects debris. 02215_ U-05 Engineer forms the Earth. Map ----- +----------------------------------------------------+ | ?????????????????????????????????????????????????? | | ?????????????????????????????????????????????????? | | ?????????????????????????????????????????????????? | | ?????????????????????????????????????????????????? | | ?????????????????????????????????????????????????? | | ?????????????????????????????????????????????????? | | ?????????????????????????????????????????????????? | | ?????????????????????????????????????????????????? | | ?????????????????????????????????????????????????? | | ?????????????????????????????????????????????????? | | ?????????????????????????????????????????????????? | | ?????????????????????????????????????????????????? | | ?????????????????????????????????????????????????? | | ?????????????????????????????????????????????????? | | ?????????????????????????????????????????????????? | | ????????????????????????????????????#????????????? | | ?????????????????#????????????????? +????????????? | | ?????????????????# ??????????????? %#????????????? | | ?????????????????# ??#######????? ##???????????? | | ?????????????????# ?# ##### #???????????? | | ?????????????????# # % ##??????????? | | ?????????????????# #% " ???????????? | | ?????????????????# Yh % u ????????????????? | | ????? ?????????#???# [[%%###???????????????????? | | ????? #????????# ??# !%Y #???????????????????? | | ????# #????#####+#??#!!@ #???????????????????? | | ????# #???## = % h =** ######????????????????? | | ????# #???# %* %!=%*=# ????????????????? | | ????# #?? # % # a# """""????????????????? | | ????# #?? # % [ % """""????????????????? | | ????# #???# # """""????????????????? | | ????# #???# " """""????????????????? | | ##### #?###; %" # """""????????????????? | | # #?; " m %k ??????????????? | | ?? # #??; # [? ?????????????? | | ??? ???####;;;; [ ##########????????????? | | ????#!^^#????#"" % #????????????? | | ???##%^ ##???#" ! | "# = #????????????? | | #### != #####" "# ! # #????????????? | | % *# #????????????? | | T < != + #????????????? | | /=%==# +????????????? | | #### ##### ##+### #????????????? | | ???#######???#########=*! # #????????????? | | ?????????????????????# = ###########????????????? | | ?????????????????????# !#??????????????????????? | | ?????????????????????# #??????????????????????? | | ?????????????????????# #??????????????????????? | | ?????????????????????# #??????????????????????? | | ?????????????????????# #??????????????????????? | +----------------------------------------------------+ Best States ------------- Heat Dissipation 43 Energy Generation 14 Energy Capacity 1380 Matter Stores 300 Matter Capacity 300 Sight Range 16 Terrain Scan Density 10 Armor Coverage 225 Evasion (%) 55 Recoil Reduction 2 Item Schematics ----------------- None Robot Schematics ------------------ None Fabricated ------------ Nothing Repaired ---------- Nothing Studied --------- None Alien Tech Used ----------------- None Achievements -------------- None Challenges ------------ None Game ------ Seed SwarmMicroScrapsphere Manual? 0 Play Time 00:15:03 Cumulative 587.3 hours Start 2026.07.05 @ 19:14:15 End 2026.07.05 @ 20:27:32 Sessions 3 Manual Loads 0 Difficulty Rogue Special Mode None Game No. 511 Rogue 475 Adventurer 36 Explorer 0 Win Type - Total 5 Types 2/0/0/1/0/0/0/2/0/0 Lore% 84 Gallery% 72 Achievement% 65 Wizard Run 0 Options --------- Layout 2 ASCII 0 Keyboard 0 Movement Numpad Keybinds 0 Fullscreen 1 Font 48/Smallcaps Map View 50x44 Zoom Use 0% Tactical HUD 1 Map Filters NONE Filters NONE Steam 1 RUN: ef69fd7b-53df-4b29-aa08-0caa430cbd7e